Cogmind - Beta 15 @@@ ROGUE MODE // 2025.05.28 @ 15:02:21 Player: SuperSwiss Result: Self-destructed Performance ------------- Evolutions (1) 500 Regions Visited (5) 1000 Robots Destroyed (47) 235 Value Destroyed (982) 982 Prototype IDs (23) 460 Alien Tech Used (0) 0 Bonus (300) 300 TOTAL SCORE: 3477 Bonus ------- Aligned with FarCom 300 Cogmind --------- Core Integrity 110/400 Matter 235/300 Energy 160/160 System Corruption 3% Temperature Cool (0) Movement Treading (320) Ox2 Location -9/Exiles Parts ------- > --- POWER (1) -------- Light Nuclear Core > --- PROPULSION (2) --- Light Treads > --- UTILITY (3) ------ Large Storage Unit Sensor Array > --- WEAPON (3) ------- YOLO Cannon > --- INVENTORY (15) --- Improved Signal Interpreter Targeting Computer Hardened Light Armor Plating Hacking Suite Authchip [Processor] Heavy Assault Rifle Heavy Assault Rifle Heavy Assault Rifle Heavy Assault Rifle Heavy Assault Rifle Datajack Plasma Cutter Peak State ------------ > --- POWER ------------ Light Nuclear Core > --- PROPULSION ------- Light Treads > --- UTILITY ---------- Large Storage Unit Sensor Array Improved Signal Interpreter > --- WEAPON ----------- YOLO Cannon Heavy Assault Rifle > --- INVENTORY -------- Improved Signal Interpreter Targeting Computer Hardened Light Armor Plating Hacking Suite Authchip [Processor] Heavy Assault Rifle Heavy Assault Rifle Heavy Assault Rifle Heavy Assault Rifle Heavy Assault Rifle Datajack Plasma Cutter [Rating: 33] Favorites ----------- Power Ion Engine Engine Ion Engine Power Core Light Nuclear Core Propulsion Light Treads Treads Light Treads Wheel Wheel Flight Unit Flight Unit Utility Large Storage Unit Device Sensor Array Storage Large Storage Unit Processor Signal Interpreter Protection Light Armor Plating Weapon Heavy Assault Rifle Energy Gun EM Pulse Gun Energy Cannon Beam Cannon Ballistic Gun Heavy Assault Rifle Launcher Rocket Launcher Special Weapon Mining Laser Build | -11 -10 -10 -9 -9 -9 ------- Run | Yrd Mat Min Mat Min Exi Slots Evolved 2 | . . . 2 . . Power . | . . . . . . Propulsion . | . . . . . . Utility 1 | . . . 1 . . Weapon 1 | . . . 1 . . Parts Attached 32 | 7 7 2 11 4 1 Power 2 | 1 . . 1 . . Engine 1 | 1 . . . . . Core 1 | . . . 1 . . Reactor . | . . . . . . Propulsion 9 | 2 1 2 2 2 . Treads 5 | 1 . 1 2 1 . Leg . | . . . . . . Wheel 3 | 1 1 . . 1 . Hover . | . . . . . . Flight 1 | . . 1 . . . Utility 9 | 2 2 . 5 . . Device 3 | 1 1 . 1 . . Storage 2 | 1 1 . . . . Processor 2 | . . . 2 . . Hackware . | . . . . . . Protection 2 | . . . 2 . . Artifact . | . . . . . . Weapon 12 | 2 4 . 3 2 1 Energy Gun 1 | 1 . . . . . Energy Cannon 2 | . 1 . . . 1 Ballistic Gun 5 | 1 2 . 2 . . Ballistic Cannon . | . . . . . . Launcher 2 | . . . . 2 . Special Weapon 2 | . 1 . 1 . . Impact Weapon . | . . . . . . Slashing Weapon . | . . . . . . Piercing Weapon . | . . . . . . Special Melee Weapon . | . . . . . . Unidentified Prototypes . | . . . . . . Parts Lost 16 | . 4 1 5 . 6 Power 1 | . . . 1 . . Propulsion 6 | . 1 1 2 . 2 Utility 3 | . 1 . 1 . 1 Weapon 6 | . 2 . 1 . 3 Highest Loss Streak 6 | . 2 1 2 . 6 To Critical Strikes . | . . . . . . Average Backups 12 | 1 7 15 14 15 14 Power . | . 1 1 . . . Propulsion . | . . . . 1 . Utility 4 | . 3 6 5 6 5 Weapon 4 | . 1 6 6 6 5 Tool/Special . | . . . . . . Unused Backups 15 | . 3 2 . . 10 Power 1 | . . 1 . . . Propulsion . | . . . . . . Utility 6 | . . 1 . . 5 Weapon 7 | . 3 . . . 4 Tool/Special 1 | . . . . . 1 Average Slot Usage (%) 98 | . 96 98 99 100 97 Engine 9 | . 14 14 9 . . Core 3 | . . . 1 11 11 Treads 15 | . 14 5 19 13 10 Wheel 8 | . 14 14 1 8 10 Device 11 | . 12 14 11 11 11 Storage 12 | . 14 14 11 11 11 Processor 6 | . . . 10 11 11 Ballistic Gun 23 | . 15 28 32 19 11 Launcher 3 | . . . . 13 20 Special Weapon 1 | . 5 . . . . Peak Build Rating 33 | 7 11 11 19 20 33 Average Rating 13 | 5 7 10 14 19 20 On Entrance 11 | . 7 11 11 19 20 Naked Turns . | . . . . . . Heaviest Build 47 | 15 32 32 38 37 47 Greatest Support 40 | 20 20 20 40 40 20 Greatest Overweight (x) 3 | 1 3 3 3 3 3 Average Overweight (x) 1 | . 1 2 . 2 2 Largest Inventory Capacity 15 | 8 15 15 15 15 15 Average Capacity 14 | 7 13 15 15 15 15 Most Carried 15 | 2 15 15 15 15 15 Average Carried 12 | 1 7 14 14 15 14 Final Capacity 15 | 8 15 15 15 15 15 Final Carried 15 | 2 15 15 15 15 12 Class Distribution -------------------- 56% | Skirmisher 41% | Mutant Dominant Class ---------------- Mutant | -10/Materials Mutant | -10/Mines Skirmisher | -9/Materials Skirmisher | -9/Mines Skirmisher | -9/Exiles Resources | -11 -10 -10 -9 -9 -9 ----------- Run | Yrd Mat Min Mat Min Exi Matter Collected 1272 | 155 291 45 631 150 . Remotely . | . . . . . . Salvage Created 1523 | 14 415 48 948 85 13 Parts 105 | 3 33 6 56 5 2 Haulers Intercepted 6 | . 2 . 4 . . Recyclers Shooed 1 | 1 . . . . . Parts Field Recycled . | . . . . . . Retrieved Matter . | . . . . . . Parts Self-Destructed . | . . . . . . Prevented . | . . . . . . Kills | -11 -10 -10 -9 -9 -9 ------- Run | Yrd Mat Min Mat Min Exi Combat Hostiles Destroyed 34 | . 12 3 17 2 . Guns 26 | . 4 3 17 2 . Cannons 8 | . 8 . . . . Classes Destroyed 9 | 1 4 . 4 . . Worker 2 | . . . 2 . . Builder 2 | . 2 . . . . Tunneler 1 | 1 . . . . . Hauler 6 | . 2 . 4 . . Recycler 1 | . . . 1 . . Swarmer 15 | . 6 3 6 . . Grunt 14 | . 6 . 6 2 . Brawler 1 | . . . 1 . . Sentry 4 | . . . 4 . . Best Kill Streak 4 | 1 4 3 3 2 1 Combat Bots Only 3 | . 3 3 3 2 . Max Kills in Single Turn 2 | 1 1 2 2 1 1 Gunslinging 1 | . . 1 . . . Exploded . | . . . . . . Melee . | . . . . . . Uniques/NPCs Destroyed 1 | . . . . . 1 EX-BIN (-9/Exiles) Combat | -11 -10 -10 -9 -9 -9 -------- Run | Yrd Mat Min Mat Min Exi Hostile Shots Fired 184 | . 59 17 74 15 19 Missed 44 | . 16 2 18 3 5 Hits 140 | . 43 15 56 12 14 Melee 3 | . . . 3 . . Projectile 137 | . 43 15 53 12 14 Critical Strikes 7 | . 3 . 3 . 1 Damage Taken 2239 | . 486 124 781 180 668 Core 371 | . 73 8 94 49 147 Absorbed by Shields . | . . . . . . Core Remaining (%) 83 | 100 . 67 . . . Volleys Fired 119 | 2 41 5 63 6 2 Largest 3 | 2 2 2 3 3 2 Hottest 123 | 60 120 46 69 69 123 Shots Fired 303 | 4 78 10 187 19 5 Gun 269 | 4 50 10 185 18 2 Cannon 20 | . 19 . . . 1 Launcher 3 | . . . . 1 2 Special 11 | . 9 . 2 . . Kinetic 257 | 2 40 10 185 18 2 Thermal 31 | . 28 . 2 . 1 Explosive 3 | . . . . 1 2 Electromagnetic 12 | 2 10 . . . . Robot Hit Streak 10 | 2 5 2 10 5 4 Robot Miss Streak 5 | 1 3 2 5 3 2 Penetration Max . | . . . . . . Secondary Targets 3 | . . 2 1 . . Max Gunslinging Chain 1 | . . 1 1 . . Shots Hit Robots 157 | 2 43 4 97 8 3 Core Hits 65 | 1 22 3 35 4 . Critical Kills 1 | . . . . . 1 Critical Parts Destroyed 1 | . . . 1 . . Critical Strikes 3 | . . . 2 . 1 Meltdown 1 | . . . . . 1 Destroy 2 | . . . 2 . . Melee Attacks . | . . . . . . Impact . | . . . . . . Slashing . | . . . . . . Piercing . | . . . . . . Sneak Attacks . | . . . . . . Combat Hostiles . | . . . . . . Follow-up Attacks . | . . . . . . Damage Inflicted 2517 | 28 661 61 1526 105 136 Guns 2103 | 28 370 61 1526 105 13 Cannons 291 | . 195 . . . 96 Explosions 27 | . . . . . 27 Melee . | . . . . . . Ramming . | . . . . . . Kinetic 1996 | 13 278 61 1526 105 13 Thermal 387 | . 291 . . . 96 Explosive 27 | . . . . . 27 Electromagnetic 107 | 15 92 . . . . Impact . | . . . . . . Slashing . | . . . . . . Piercing . | . . . . . . Highest Corruption 3 | . . . 3 3 3 Average Corruption 3 | . . . 3 3 3 Corruption Purged . | . . . . . . Corruption Blocked . | . . . . . . Effects 29 | . . . 17 9 3 Message Errors 5 | . . . 4 . 1 Matter Fused 6 | . . . 4 2 . Heat Flow Errors 4 | . . . 2 2 . Energy Discharges 4 | . . . 2 2 . Data Loss (minor) 4 | . . . 2 2 . Misfires 5 | . . . 3 1 1 Alerts 1 | . . . . . 1 Overload Shots . | . . . . . . Overflow Damage . | . . . . . . Projectiles . | . . . . . . Explosions . | . . . . . . Melee . | . . . . . . Knockbacks . | . . . . . . Impact . | . . . . . . Kinetic . | . . . . . . Secondary . | . . . . . . Self-Inflicted Damage 100 | . . . 62 38 . Shots 2 | . . . 1 1 . Rammed . | . . . . . . Targets Rammed . | . . . . . . Kicked . | . . . . . . Crushed . | . . . . . . Highest Temperature 277 | 1 192 . 264 277 15 Average Temperature 53 | 1 53 . 37 95 9 Received Heat Transfer 561 | . 246 . 231 84 . Siege Activations . | . . . . . . Martial Activations . | . . . . . . Shielding Activations . | . . . . . . Robots Disrupted . | . . . . . . Combat Hostiles . | . . . . . . Robots Corrupted . | . . . . . . Combat Hostiles . | . . . . . . Parts Fried . | . . . . . . Impact Corruptions . | . . . . . . Robots Melted 1 | . . . . . 1 Combat Hostiles . | . . . . . . Parts Melted 9 | . 1 . . . 8 Heat Transferred 687 | . 607 . . . 80 Parts Sabotaged . | . . . . . . Parts Stolen . | . . . . . . Parts Stripped . | . . . . . . Power Chain Reactions . | . . . . . . Alert | -11 -10 -10 -9 -9 -9 ------- Run | Yrd Mat Min Mat Min Exi Maximum Alert Level . | . . . . . . Low Security (%) 100 | 100 100 100 100 100 . Level 1 . | . . . . . . Level 2 . | . . . . . . Level 3 . | . . . . . . Level 4 . | . . . . . . Level 5 . | . . . . . . High Security . | . . . . . . Max Security . | . . . . . . Peak Influence 173 | . 173 100 142 82 . Initial 50 | . . 50 . 32 . Average 55 | . 47 52 79 16 . Influence Increases 1134 | 5 401 70 598 60 . Destroy 0b10 Robot/C 680 | . 240 60 340 40 . Destroy 0b10 Robot/NC 60 | 5 20 . 35 . . Destroy Leader 192 | . 64 10 108 10 . Successful Hack 38 | . 15 . 23 . . Disable Machine 75 | . 30 . 45 . . Destroy Structure 29 | . 2 . 17 10 . Lose Combat Pursuer 60 | . 30 . 30 . . Influence Decreases 1134 | 5 271 200 514 144 . Entered New Map 132 | . . 80 . 52 . Time Decay 912 | 5 251 110 454 92 . Lost Part 80 | . 20 10 50 . . Lost Ally 10 | . . . 10 . . Squads Dispatched 4 | . 2 . 2 . . Investigation 1 | . 1 . . . . Extermination . | . . . . . . Reinforcement 3 | . 1 . 2 . . Assault . | . . . . . . Garrison . | . . . . . . Intercept . | . . . . . . Searches Triggered . | . . . . . . Construction Impeded 1 | . . . 1 . . Haulers Reinforced . | . . . . . . Active Scanning Responses . | . . . . . . Cargo Convoy Interrupts . | . . . . . . Stealth | -11 -10 -10 -9 -9 -9 --------- Run | Yrd Mat Min Mat Min Exi Distress Signals 1 | . 1 . . . . Communications Jammed . | . . . . . . Distress Signals . | . . . . . . Times Spotted 62 | . 23 4 25 2 8 Peak Tracking Total 12 | . 7 3 6 2 12 Tactical Retreats 5 | . 2 . 2 . 1 Traps | -11 -10 -10 -9 -9 -9 ------- Run | Yrd Mat Min Mat Min Exi Traps Triggered 1 | . 1 . . . . Indirectly . | . . . . . . Trap Hack Attempts . | . . . . . . Triggered . | . . . . . . Disarmed . | . . . . . . Reprogrammed . | . . . . . . Reused . | . . . . . . Traps Extracted . | . . . . . . Installed . | . . . . . . Triggered . | . . . . . . Machines | -11 -10 -10 -9 -9 -9 ---------- Run | Yrd Mat Min Mat Min Exi Machines Disabled 8 | . 2 . 3 . 3 Max in Single Turn 1 | . 1 . 1 . 1 Machines Repaired . | . . . . . . Machines Dismantled 2 | . . . 2 . . Machines Sabotaged . | . . . . . . Overloaded Fab Kills . | . . . . . . Hacking | -11 -10 -10 -9 -9 -9 --------- Run | Yrd Mat Min Mat Min Exi Machines Accessed 15 | . 7 . 7 . 1 Terminals 13 | . 7 . 6 . . Fabricators . | . . . . . . Repair Stations . | . . . . . . Recycling Units . | . . . . . . Scanalyzers 1 | . . . 1 . . Garrison Access . | . . . . . . Total Hacks 39 | . 18 . 20 . 1 Successful 23 | . 8 . 14 . 1 Failed 16 | . 10 . 6 . . Catastrophic 1 | . . . 1 . . Database Lockouts . | . . . . . . Manual 21 | . 11 . 9 . 1 Terminals 31 | . 18 . 13 . . Fabricators . | . . . . . . Repair Stations . | . . . . . . Recycling Units . | . . . . . . Scanalyzers 7 | . . . 7 . . Garrison Access . | . . . . . . Terminal Hacks 4 | . 1 . 2 . 1 Locate Traps 1 | . . . 1 . . Hauler Manifests 1 | . 1 . . . . Registered Prototypes 1 | . . . 1 . . Proto ID Catalog 1 | . . . . . 1 Fabricator Hacks . | . . . . . . Repair Station Hacks . | . . . . . . Recycling Unit Hacks . | . . . . . . Scanalyzer 7 | . . . 7 . . Insert Component 3 | . . . 3 . . Analyze 4 | . . . 4 . . Garrison Access Hacks . | . . . . . . Unauthorized Hacks 12 | . 7 . 5 . . Terminals 12 | . 7 . 5 . . Assimilate 2 | . 1 . 1 . . Botnet 1 | . 1 . . . . Skim 9 | . 5 . 4 . . Fabricators . | . . . . . . Repair Stations . | . . . . . . Recycling Units . | . . . . . . Scanalyzers . | . . . . . . Garrison Access . | . . . . . . Data Cores Recovered . | . . . . . . Used . | . . . . . . Hacking Detections 12 | . 5 . 7 . . Full Trace Events . | . . . . . . Feedback Events . | . . . . . . Feedback Blocked . | . . . . . . Robot Schematics Acquired . | . . . . . . Robots Built . | . . . . . . Authchips . | . . . . . . Time . | . . . . . . Total Robot Build Rating . | . . . . . . Part Schematics Acquired 3 | . . . 3 . . Parts Built . | . . . . . . Authchips . | . . . . . . Time . | . . . . . . Total Part Build Rating . | . . . . . . Parts Repaired . | . . . . . . Time . | . . . . . . Parts Recycled . | . . . . . . Recycled Matter . | . . . . . . Retrieved Matter . | . . . . . . Retrieved Components . | . . . . . . Parts Scanalyzed 3 | . . . 3 . . Part Schematics Acquired 3 | . . . 3 . . Parts Damaged . | . . . . . . Bothacking | -11 -10 -10 -9 -9 -9 ------------ Run | Yrd Mat Min Mat Min Exi Used RIF Installer . | . . . . . . Robots Hacked . | . . . . . . Non-combat . | . . . . . . Combat . | . . . . . . Robot Hacks Applied . | . . . . . . Relay Couplers Released . | . . . . . . Fabnet Peak Effective % . | . . . . . . Robots Rewired . | . . . . . . Allies Hacked . | . . . . . . Hacks Repelled . | . . . . . . Allies | -11 -10 -10 -9 -9 -9 -------- Run | Yrd Mat Min Mat Min Exi Total Allies 5 | . 1 . 1 3 . Largest Group 3 | . 1 . 1 3 3 Highest-Rated Group 40 | . 10 . 10 40 40 Highest-Rated Ally 16 | . 10 . 10 16 16 Total Orders . | . . . . . . Ally Attacks 26 | . . . . . 26 Total Damage 219 | . . . . . 219 Kills 3 | . . . . . 3 Allies Corrupted 1 | . . . . . 1 Allies Melted . | . . . . . . Intel | -11 -10 -10 -9 -9 -9 ------- Run | Yrd Mat Min Mat Min Exi Active Infowar (turns) 2954 | 13 895 220 1169 418 239 Sensors 1732 | . . . 1075 418 239 Seismic 1222 | 13 895 220 94 . . Robot Analysis Total . | . . . . . . Derelict Logs Recovered 2 | . . 1 . 1 . Drone Launches . | . . . . . . Drone Recoveries . | . . . . . . Exploration | -11 -10 -10 -9 -9 -9 ------------- Run | Yrd Mat Min Mat Min Exi Turns Passed 3098 | 70 981 220 1170 418 239 Spaces Moved 1709 | 46 536 132 548 283 164 Core 2 | 2 . . . . . Treads 734 | 16 184 26 461 44 3 Legs . | . . . . . . Wheels 973 | 28 352 106 87 239 161 Hover . | . . . . . . Flight . | . . . . . . Fastest Speed 50 | 50 95 125 125 120 120 Average Speed 144 | 114 140 147 156 136 138 Slowest Speed 320 | 160 240 240 240 160 320 Overloaded Moves . | . . . . . . Propulsion Burnouts . | . . . . . . Robots Hopped . | . . . . . . Potential Cave-ins . | . . . . . . Cave-ins Triggered . | . . . . . . Exploration Rate (%) 47 | 3 86 35 54 62 46 Regions Visited 5 Branch Regions 3 Pre-discovered Areas 3 | . 2 1 . . . Known Exits Taken 3 | . . 1 1 1 . Unknown Exits Taken 2 | 1 1 . . . . Scrap Searched 1 | . . . . 1 . Spaces Dug . | . . . . . . Terrain Destroyed 43 | . 1 . 20 13 9 Melee . | . . . . . . Projectile 1 | . 1 . . . . AOE 42 | . . . 20 13 9 Terrain Rammed . | . . . . . . Walls Destroyed . | . . . . . . Machines Disabled . | . . . . . . Actions | -11 -10 -10 -9 -9 -9 --------- Run | Yrd Mat Min Mat Min Exi Total 2050 | 56 669 149 704 301 171 Wait 134 | . 61 6 60 7 . Move 1704 | 45 535 131 547 282 164 Hop . | . . . . . . Pick Up 31 | 2 19 2 7 . 1 Fast Attach 16 | 7 3 2 3 1 . Attach 12 | . 3 . 7 . 2 Detach 3 | . . . 2 1 . Swap 8 | . 1 . 4 3 . Drop 15 | . 6 3 3 1 2 Fire 119 | 2 41 5 63 6 2 Melee . | . . . . . . Ram . | . . . . . . Kick . | . . . . . . Crush . | . . . . . . Escape Stasis . | . . . . . . Rewire . | . . . . . . Trap . | . . . . . . Miscellaneous 8 | . . . 8 . . Route ------- -11/Scrapyard -10/Materials (discovered 5 exits: *Mat x3 / [*Min] / Sub) -10/Mines (discovered 3 exits: *Mat x2 / Sub) -9/Materials (discovered 4 exits: *Mat / *Min x2 / *Sto) -9/Mines (discovered 2 exits: *Mat / *Exi) -9/Exiles History --------- Turn | Location | Event 21 | -11/Scrapyard | Discovered new exit (range 14) 71 | -11/Scrapyard | Entered Materials 307 | -10/Materials | Build established: Mutant 402 | -10/Materials | Discovered new exit (range 12) 557 | -10/Materials | Discovered new exit (range 8) 919 | -10/Materials | Learned location of 1 exit from Storage 977 | -10/Materials | Identified exit to Materials 990 | -10/Materials | Learned 4 Subcaves zone layouts 991 | -10/Materials | Learned location of 2 exits from Mines 992 | -10/Materials | Identified exit to Subcaves 992 | -10/Materials | Learned location of 2 exits from Materials 1052 | -10/Materials | Entered Mines 1186 | -10/Mines | Joined a pair of Derelicts in attacking an 0b10 outpost 1251 | -10/Mines | Learned location of Zion (-7) 1258 | -10/Mines | Discovered exit to Materials (range 7) 1272 | -10/Mines | Entered Materials 1272 | -9/Materials | Evolved 2 slots: Utility x1, Weapon x1 1273 | -9/Materials | Identified exit to Storage 1273 | -9/Materials | Identified exit to Mines 1633 | -9/Materials | Build established: Skirmisher 1718 | -9/Materials | Discovered new exit (range 11) 2430 | -9/Materials | Discovered exit to Mines (range 6) 2442 | -9/Materials | Entered Mines 2498 | -9/Mines | Discovered new exit (range 8) 2512 | -9/Mines | Assisted by bots powering up and referring to "LRC-V3" 2514 | -9/Mines | Identified exit to Materials 2588 | -9/Mines | Learned Materials trap positions 2600 | -9/Mines | Assembled infested the area 2605 | -9/Mines | Assisted by a Guerilla fighting off Assembled 2852 | -9/Mines | Deemed a non-threat by the Exiles lab entrance 2852 | -9/Mines | Discovered new exit (range 5) 2856 | -9/Mines | Identified exit to Exiles 2860 | -9/Mines | Entered Exiles 2860 | -9/Exiles | Accompanied by 3 allies 2893 | -9/Exiles | Met 8R-AWN 2916 | -9/Exiles | Met EX-HEX 2958 | -9/Exiles | Met EX-BIN 2974 | -9/Exiles | Aligned with FarCom system 2975 | -9/Exiles | Given EX-Vault access code 3008 | -9/Exiles | Opened EX-Vault 3015 | -9/Exiles | Found YOLO Cannon 3042 | -9/Exiles | Warned to stay clear of 0b10 Research branches 3069 | -9/Exiles | Attacked by the Exiles 3084 | -9/Exiles | Destroyed EX-BIN 3088 | -9/Exiles | Core integrity fell below 50% 3099 | -9/Exiles | Self-destructed Last Messages --------------- 03079_ Arm. Wheel destroyed. 03079_ as-16976 destroyed. 03080_ Machine disabled. 03081_ Rocket Launcher destroyed. 03083_ as-57591 destroyed. 03084_ Machine disabled. 03084_ EX-BIN suffers critical hit (Meltdown). 03084_ EX Chip 1 melted. 03084_ EX Chip 2 melted. 03084_ EX Chip 1 melted. 03084_ EX Chip 2 melted. 03084_ EX Chip 1 melted. 03084_ EX-BIN: "You can't kill me, my evil twin will get revenge!" 03085_ Mercenary 2a destroyed. 03086_ as-54377 suffers critical hit (Burn). 03089_ Trooper 2b destroyed. 03091_ Hvy. Assault Rifle destroyed. 03091_ Imp. Signal Interpreter destroyed. 03091_ Critical hit (Blast). 03093_ PLEOK%8ZTPDAVU>>TBI9:J#:GL2XIPVM8/ Map ----- +----------------------------------------------------+ | ?????????????????????????#""X" #?????????? | | ?????????????????????????#" #?????????? | | ?????????????????????????#" ## #?????????? | | ?????????????????????????#""""""?# #?######### | | ?????????????????????????##"###??# #?#"""""""# | | ?????????????????????????? ??????# #?#"""""""# | | ?????????????????????????????????# #?#"""""""# | | ????????????????????????????????## ###"" """"# | | ????????????????????????????????#" """"# | | ????????????????????????????????#" """# | | ????????????????????????????????#" """# | | ????????????????????????????????#" """# | | ????????????????????????????????#" """# | | ????????????????????????????????#" """# | | ????????????????????????????????## """" | | ?????????????????????????????????# """# | | ?????????????????????????????????#" "X" """" | | ?????????????????????????????????#" """ # | | ?????????????????????????????????#" """""""""# | | ????????????????????????????????##" ########### | | ???????????????????#???????????## "= #?????????? | | ???????????????????# ?##??######"" %[ #?????????? | | ?????????????#####X# #"###""""""" = ##????????? | | ???????????? """""" " "" % ##???##### | | ???????????? "" """ " =% #####"""" | | ???????????? "@a"%a% " "" | | ???????????? a% "" | | ???????????? " | | ???????????? % a | | ???????????? a | | ????????????? =%! | | ?????????????"" """ ! | | ????????????? ### | | ????????????? % "##??#### | | ?????????????" ##????????###" | | ?????????????? ;#???????????# | | ?????????????? ##???????????#"" | | ???????????????? ##????????????"""" | | ?????????????????? ????????????"" | | ???????????????????? ???????????" | | ??????????????????????? ?????????? | | ???????????????????????????????????? | | ????????????????????????????????????? " | | ????????????????????????????????????? "" " | | ???????????????????????????????????????""" " " "" | | ???????????????????????????????????????####""" """ | | ??????????????????????????????????????????###""""# | | ????????????????????????????????????????????####?? | | ?????????????????????????????????????????????????? | | ?????????????????????????????????????????????????? | +----------------------------------------------------+ Best States ------------- Heat Dissipation 28 Energy Generation 14 Energy Capacity 250 Matter Stores 300 Matter Capacity 300 Sight Range 16 Robot Scan Range 14 Terrain Scan Density 10 Armor Coverage 150 Evasion (%) 44 Recoil Reduction 2 Authchip Count 1 Item Schematics ----------------- Plasma Cutter | -9/Materials | Scanalyzed Hvy. Assault Rifle | -9/Materials | Scanalyzed Hacking Suite | -9/Materials | Scanalyzed Robot Schematics ------------------ None Fabricated ------------ Nothing Repaired ---------- Nothing Alien Tech Used ----------------- None Achievements -------------- None Challenges ------------ None Game ------ Seed ShadeEncryptedLog Manual? 0 Play Time 00:40:12 Cumulative 55.4 hours Start 2025.05.28 @ 14:22:24 End 2025.05.28 @ 15:02:21 Sessions 1 Manual Loads 0 Difficulty Rogue Special Mode None Game No. 68 Rogue 65 Adventurer 0 Explorer 3 Win Type - Total 0 Types 0/0/0/0/0/0/0/0/0/0 Lore% 11 Gallery% 34 Achievement% 32 Wizard Run 0 Options --------- Layout 0 ASCII 0 Keyboard 0 Movement Numpad Keybinds 0 Fullscreen 2 Font 16/SmallcapsGlow Map View 88x55 Zoom Use 0% Tactical HUD 1 Map Filters NONE Filters NONE Steam 1 RUN: ac439498-3e76-476e-a7be-eb7408278dfb